bitfinex-derivatives/quotes_BTCF0:USTF0_20250809
["timestamp","ask_amount","ask_price","bid_price","bid_amount"]
[1754765665810,0.968558,116760.0,116750.0,0.90388088]
[1754765666007,1.001738,116760.0,116750.0,1.23690736]
[1754765666209,1.001738,116760.0,116750.0,0.90388088]
[1754765666611,1.001738,116760.0,116750.0,0.97274589]
[1754765666807,1.004738,116760.0,116750.0,1.30577237]
[1754765667114,1.004738,116760.0,116750.0,0.97274589]
[1754765669403,1.004738,116760.0,116750.0,1.30577237]
[1754765670001,0.968558,116760.0,116750.0,1.30577237]
[1754765670411,0.114918,116760.0,116750.0,2.15265237]
[1754765670810,0.0915678,116760.0,116750.0,2.30676351]
[1754765671603,0.0915678,116760.0,116750.0,2.30667221]
[1754765679617,0.0915678,116760.0,116750.0,2.15265237]
[1754765680519,0.0915678,116760.0,116750.0,2.30667221]
[1754765684122,0.0915678,116760.0,116750.0,1.94587221]
[1754765684320,0.0915678,116760.0,116750.0,2.66747221]
[1754765685216,0.0915678,116760.0,116750.0,2.51345237]
[1754765686822,0.0915678,116760.0,116750.0,2.66719606]
[1754765687618,0.0915678,116760.0,116750.0,2.51345237]
[1754765689326,0.0915678,116760.0,116750.0,2.66723466]
[1754765690223,0.0915678,116760.0,116750.0,2.51345237]
[1754765692421,0.1696178,116760.0,116750.0,2.70314285]
[1754765692726,0.1726178,116760.0,116750.0,2.70314285]
[1754765694326,0.1726178,116760.0,116750.0,1.86678285]
[1754765694825,0.0915678,116760.0,116750.0,1.86678285]
[1754765696718,0.0915678,116760.0,116750.0,2.70226285]
[1754765696918,0.1253578,116760.0,116750.0,2.70226285]
[1754765697624,0.0915678,116760.0,116750.0,2.70226285]
[1754765698427,0.0915678,116760.0,116750.0,2.50205237]
[1754765699726,0.0915678,116760.0,116750.0,2.70226285]
[1754765702028,0.0915678,116760.0,116750.0,2.50205237]
[1754765703922,0.1253578,116760.0,116750.0,2.50205237]
[1754765705030,0.1253578,116760.0,116750.0,1.83599941]
[1754765705223,0.1253578,116760.0,116750.0,2.50205237]
[1754765705625,0.1253578,116760.0,116750.0,2.65623405]
[1754765706129,0.0915678,116760.0,116750.0,2.65623405]
[1754765706523,0.1242678,116760.0,116750.0,2.50205237]
[1754765706927,0.1242678,116760.0,116750.0,2.69742285]
[1754765708233,0.01831616,116760.0,116750.0,2.69742285]
[1754765709224,0.06238,116770.0,116760.0,0.201618]
[1754765709424,0.48102718,116770.0,116760.0,0.26272269]
[1754765709631,0.48102718,116770.0,116760.0,0.59574917]
[1754765709834,0.48102718,116770.0,116760.0,0.66646917]
[1754765710132,0.48102718,116770.0,116760.0,0.68883917]
[1754765710330,0.48102718,116770.0,116760.0,0.136108]
[1754765710331,0.50872718,116770.0,116760.0,0.136108]
[1754765710527,1.67384166,116770.0,116760.0,0.087628]
[1754765710734,1.67384166,116770.0,116760.0,0.19557216]
[1754765711033,1.34081518,116770.0,116760.0,0.19557216]
[1754765711435,1.45573318,116770.0,116760.0,0.19557216]
[1754765712034,1.45673318,116770.0,116760.0,0.19457216]
[1754765712536,1.1237067,116770.0,116760.0,0.19457216]
[1754765712836,1.45773318,116770.0,116760.0,0.19457216]
[1754765714728,1.45873318,116770.0,116760.0,0.19357216]
[1754765715023,1.79175966,116770.0,116760.0,0.19357216]
[1754765715634,1.45873318,116770.0,116760.0,0.19357216]
[1754765715931,1.79175966,116770.0,116760.0,0.085628]
[1754765716135,1.1257067,116770.0,116760.0,0.085628]
[1754765716433,1.45873318,116770.0,116760.0,0.085628]
[1754765717230,1.45873318,116770.0,116760.0,0.21628018]
[1754765718639,0.9544187,116770.0,116760.0,0.23310549]
[1754765718934,1.28744518,116770.0,116760.0,0.23310549]
[1754765719938,1.28744518,116770.0,116760.0,0.21628018]
[1754765720342,1.62047166,116770.0,116760.0,0.21628018]
[1754765720930,1.62047166,116770.0,116760.0,0.19338018]
[1754765722441,1.62047166,116770.0,116760.0,0.20954565]
[1754765722743,1.62047166,116770.0,116760.0,0.19338018]
[1754765722931,1.62047166,116770.0,116760.0,0.20994715]
[1754765723132,1.62047166,116770.0,116760.0,0.19338018]
[1754765724039,1.62047166,116770.0,116760.0,0.085628]
[1754765724644,0.175708,116760.0,116750.0,0.89930236]
[1754765724846,1.66996096,116760.0,116750.0,0.89930236]
[1754765725039,1.66996096,116760.0,116750.0,0.56627588]
[1754765725240,1.78487896,116760.0,116750.0,0.89930236]
[1754765725536,1.78487896,116760.0,116750.0,0.58232403]
[1754765725741,1.78587896,116760.0,116750.0,0.91535051]
[1754765725943,1.45285248,116760.0,116750.0,0.58232403]
[1754765726244,1.45285248,116760.0,116750.0,0.91535051]
[1754765726740,1.78587896,116760.0,116750.0,0.91535051]
[1754765727245,1.78587896,116760.0,116750.0,0.58232403]
[1754765727444,1.78587896,116760.0,116750.0,0.91535051]
[1754765728345,1.78587896,116760.0,116750.0,0.58232403]
[1754765728547,1.78587896,116760.0,116750.0,0.91535051]
[1754765730148,1.119826,116760.0,116750.0,0.91535051]
[1754765730542,1.78587896,116760.0,116750.0,0.91535051]
[1754765732246,1.78587896,116760.0,116750.0,0.58232403]
[1754765732640,1.78587896,116760.0,116750.0,0.91535051]
[1754765733445,1.78587896,116760.0,116750.0,0.80759833]
[1754765734550,1.119826,116760.0,116750.0,0.80759833]
[1754765734745,1.78587896,116760.0,116750.0,0.80759833]
[1754765734947,1.78587896,116760.0,116750.0,0.47457185]
[1754765735254,1.78587896,116760.0,116750.0,0.91535868]
[1754765736656,1.119826,116760.0,116750.0,0.91535868]
[1754765737454,1.45285248,116760.0,116750.0,0.91535868]
[1754765738155,1.78587896,116760.0,116750.0,0.5823322]
[1754765738351,1.78587896,116760.0,116750.0,0.91535868]
[1754765738552,1.119826,116760.0,116750.0,0.91535868]
[1754765738850,1.45285248,116760.0,116750.0,0.91535868]
[1754765740256,1.45285248,116760.0,116750.0,0.80759833]
[1754765740558,1.45285248,116760.0,116750.0,0.47457185]
[1754765740758,1.45285248,116760.0,116750.0,0.80759833]
[1754765742368,1.78587896,116760.0,116750.0,0.80759833]
[1754765743061,1.119826,116760.0,116750.0,0.80759833]
[1754765743267,1.78587896,116760.0,116750.0,0.80759833]
[1754765743663,1.78587896,116760.0,116750.0,0.47457185]
[1754765743965,1.78587896,116760.0,116750.0,0.80759833]
[1754765744167,1.119826,116760.0,116750.0,0.80759833]
[1754765744372,1.78587896,116760.0,116750.0,0.80759833]
[1754765744667,1.78587896,116760.0,116750.0,0.47457185]
[1754765745059,1.119826,116760.0,116750.0,0.47457185]
[1754765745264,1.78587896,116760.0,116750.0,0.80759833]
[1754765746471,1.78587896,116760.0,116750.0,0.72196393]
[1754765747375,1.119826,116760.0,116750.0,0.72196393]
[1754765747575,1.78587896,116760.0,116750.0,0.72196393]
[1754765751480,1.119826,116760.0,116750.0,0.72196393]
[1754765751680,1.78587896,116760.0,116750.0,0.72196393]
[1754765752582,1.78587896,116760.0,116750.0,0.38893745]
[1754765752782,1.78587896,116760.0,116750.0,0.72196393]
[1754765753586,1.78587896,116760.0,116750.0,0.38893745]
[1754765753782,1.78587896,116760.0,116750.0,0.69130393]
[1754765753978,1.78587896,116760.0,116750.0,0.72391393]
[1754765755084,1.45285248,116760.0,116750.0,0.72391393]
[1754765755886,1.45285248,116760.0,116750.0,0.39088745]
[1754765756087,1.45285248,116760.0,116750.0,0.72391393]
[1754765756286,1.78587896,116760.0,116750.0,0.72391393]
[1754765757591,1.45285248,116760.0,116750.0,0.72391393]
[1754765758387,1.78587896,116760.0,116750.0,0.72391393]
[1754765760595,1.78587896,116760.0,116750.0,0.39088745]
[1754765760794,1.78587896,116760.0,116750.0,0.72391393]
[1754765764291,1.78587896,116760.0,116750.0,0.39088745]
[1754765765889,1.78587896,116760.0,116750.0,0.72391393]
[1754765766696,1.78587896,116760.0,116750.0,0.39088745]
[1754765769101,1.78587896,116760.0,116750.0,0.54508214]
[1754765770695,1.78587896,116760.0,116750.0,0.87810862]
[1754765771702,1.78587896,116760.0,116750.0,1.23890862]
[1754765773202,1.78587896,116760.0,116750.0,1.08471393]
[1754765774907,1.78587896,116760.0,116750.0,0.61896305]
[1754765775102,1.119826,116760.0,116750.0,0.30568305]
[1754765775405,1.78587896,116760.0,116750.0,0.30568305]
[1754765776108,0.1603353,116750.0,116740.0,0.3494214]
[1754765776303,0.51023178,116750.0,116740.0,0.241434]
[1754765776504,0.51023178,116750.0,116740.0,0.44314869]
[1754765777601,0.51023178,116750.0,116740.0,0.44414869]
[1754765777801,0.51023178,116750.0,116740.0,0.44514869]
[1754765778002,0.51023178,116750.0,116740.0,0.290954]
[1754765778516,0.51023178,116750.0,116740.0,0.30571036]
[1754765779508,0.51023178,116750.0,116740.0,0.12560836]
[1754765779709,0.84325826,116750.0,116740.0,0.23350622]
[1754765779903,0.1772053,116750.0,116740.0,0.23350622]
[1754765780108,0.51023178,116750.0,116740.0,0.32796622]
[1754765780303,0.62514978,116750.0,116740.0,0.32796622]
[1754765780509,0.2921233,116750.0,116740.0,0.32796622]
[1754765780811,0.62514978,116750.0,116740.0,0.32796622]
[1754765783312,0.98594978,116750.0,116740.0,0.32796622]
[1754765784212,0.62514978,116750.0,116740.0,0.32796622]
[1754765784407,0.2921233,116750.0,116740.0,0.32796622]
[1754765784608,0.62514978,116750.0,116740.0,0.32796622]
[1754765784808,0.98594978,116750.0,116740.0,0.32796622]
[1754765785103,1.31897626,116750.0,116740.0,0.32796622]
[1754765785614,0.6529233,116750.0,116740.0,0.32796622]
[1754765785814,0.98594978,116750.0,116740.0,0.32796622]
[1754765786015,0.62514978,116750.0,116740.0,0.32796622]
[1754765786308,0.62514978,116750.0,116740.0,0.32796702]
[1754765786711,0.98594978,116750.0,116740.0,0.32796702]
[1754765787015,0.95817626,116750.0,116740.0,0.31321076]
[1754765787712,1.31897626,116750.0,116740.0,0.2053129]
[1754765788717,0.95817626,116750.0,116740.0,0.2053129]
[1754765789215,1.31897626,116750.0,116740.0,0.2053129]
[1754765790510,1.31897626,116750.0,116740.0,0.22035728]
[1754765792921,1.31897626,116750.0,116740.0,0.2053129]
[1754765794021,1.31897626,116750.0,116740.0,0.11967]
[1754765797325,1.31897626,116750.0,116740.0,0.08664]
[1754765797625,1.31897626,116750.0,116740.0,0.002]
[1754765797925,1.31897626,116750.0,116740.0,0.10989786]
[1754765799626,1.31897626,116750.0,116740.0,0.13470786]
[1754765800428,1.31897626,116750.0,116740.0,0.02681]
[1754765803429,1.31897626,116750.0,116740.0,0.13470786]
[1754765807923,1.31897626,116750.0,116740.0,0.02681]
[1754765811231,0.95817626,116750.0,116740.0,0.02681]
[1754765811437,1.31897626,116750.0,116740.0,0.02681]
[1754765814027,0.95817626,116750.0,116740.0,0.02681]
[1754765814227,1.31897626,116750.0,116740.0,0.02681]
[1754765819935,1.31897626,116750.0,116740.0,0.13476626]
[1754765822423,1.31897626,116750.0,116740.0,0.10995626]
[1754765822830,1.31897626,116750.0,116740.0,0.002]
[1754765823233,1.31897626,116750.0,116740.0,0.10995626]
[1754765825133,1.31897626,116750.0,116740.0,0.13414626]
[1754765825437,0.6529233,116750.0,116740.0,0.13414626]
[1754765825635,1.31897626,116750.0,116740.0,0.13414626]
[1754765829736,0.95817626,116750.0,116740.0,0.13414626]
[1754765829943,1.31897626,116750.0,116740.0,0.13414626]
[1754765830942,0.6529233,116750.0,116740.0,0.13414626]
[1754765831142,1.31897626,116750.0,116740.0,0.13414626]
[1754765833345,0.6529233,116750.0,116740.0,0.13414626]
[1754765833635,1.31897626,116750.0,116740.0,0.13414626]
[1754765836544,0.6529233,116750.0,116740.0,0.13414626]
[1754765836739,1.31897626,116750.0,116740.0,0.13414626]
[1754765837745,1.31897626,116750.0,116740.0,0.02619]
[1754765838443,0.95817626,116750.0,116740.0,0.1118328]
[1754765838641,1.31897626,116750.0,116740.0,0.1118328]
[1754765838840,1.31897626,116750.0,116740.0,0.02619]
[1754765841641,1.33283658,116750.0,116740.0,0.02619]
[1754765842044,0.30598362,116750.0,116740.0,0.02619]
[1754765842250,1.31897626,116750.0,116740.0,0.02619]
[1754765844654,1.33245925,116750.0,116740.0,0.02619]
[1754765845756,1.31897626,116750.0,116740.0,0.02619]
[1754765847857,1.31897626,116750.0,116740.0,0.13414626]
[1754765850563,1.31897626,116750.0,116740.0,0.02619]
[1754765854965,0.98594978,116750.0,116740.0,0.02619]
[1754765855165,1.43091978,116750.0,116740.0,0.52558928]
[1754765855369,1.43091978,116750.0,116740.0,0.54009928]
[1754765855867,1.43091978,116750.0,116740.0,0.31502906]
[1754765857264,1.79171978,116750.0,116740.0,0.31502906]
[1754765857971,1.80858978,116750.0,116740.0,0.31502906]
[1754765858364,1.4755633,116750.0,116740.0,0.31502906]
[1754765858669,1.80858978,116750.0,116740.0,0.31502906]
[1754765858970,1.44778978,116750.0,116740.0,0.31502906]
[1754765859270,1.1147633,116750.0,116740.0,0.31502906]
[1754765859459,1.44778978,116750.0,116740.0,0.31502906]
[1754765860272,1.80858978,116750.0,116740.0,0.2070728]
[1754765860568,2.14161626,116750.0,116740.0,0.2070728]
[1754765860765,1.78081626,116750.0,116740.0,0.2070728]
[1754765860969,2.14161626,116750.0,116740.0,0.2070728]
[1754765862974,1.78081626,116750.0,116740.0,0.12143]
[1754765863172,2.14161626,116750.0,116740.0,0.12143]
[1754765863872,1.78081626,116750.0,116740.0,0.12143]
[1754765864265,2.14161626,116750.0,116740.0,0.2070728]
[1754765864471,2.14161626,116750.0,116740.0,0.31502906]
[1754765865774,1.78081626,116750.0,116740.0,0.31502906]
[1754765866572,2.14161626,116750.0,116740.0,0.22938626]
[1754765867472,2.14161626,116750.0,116740.0,0.31502906]
[1754765868776,2.14161626,116750.0,116740.0,0.22938626]
[1754765872078,1.78081626,116750.0,116740.0,0.22938626]
[1754765872279,2.14161626,116750.0,116740.0,0.22938626]
[1754765872666,2.14161626,116750.0,116740.0,0.18132626]
[1754765872871,2.14161626,116750.0,116740.0,0.14320626]
[1754765873476,2.14161626,116750.0,116740.0,0.13414626]
[1754765874780,2.14161626,116750.0,116740.0,0.10995626]
[1754765877781,2.14161626,116750.0,116740.0,0.002]
[1754765881386,2.14161626,116750.0,116740.0,0.02647]
[1754765883688,2.14161626,116750.0,116740.0,0.002]
[1754765885389,2.14161626,116750.0,116740.0,0.02518]
[1754765886193,1.4755633,116750.0,116740.0,0.02518]
[1754765886392,2.14161626,116750.0,116740.0,0.02518]
[1754765887789,2.14161626,116750.0,116740.0,0.13313626]
[1754765888185,1.4755633,116750.0,116740.0,0.13313626]
[1754765888386,2.14161626,116750.0,116740.0,0.13313626]
[1754765890586,2.47464274,116750.0,116740.0,0.10995626]
[1754765890991,2.14161626,116750.0,116740.0,0.002]
[1754765891697,1.4755633,116750.0,116740.0,0.002]
[1754765891892,2.14161626,116750.0,116740.0,0.002]
[1754765895797,2.14161626,116750.0,116740.0,0.10995626]
[1754765897096,1.78081626,116750.0,116740.0,0.10995626]
[1754765897400,2.14161626,116750.0,116740.0,0.10995626]
[1754765900002,1.4755633,116750.0,116740.0,0.10995626]
[1754765900202,2.14161626,116750.0,116740.0,0.10995626]
[1754765902302,2.14161626,116750.0,116740.0,0.13313626]
[1754765905705,2.14261626,116750.0,116740.0,0.13113626]
[1754765908113,2.14261626,116750.0,116740.0,0.02318]
[1754765910317,1.4765633,116750.0,116740.0,0.02318]
[1754765910613,2.14261626,116750.0,116740.0,0.02318]
[1754765911018,2.14261626,116750.0,116740.0,0.03235]
[1754765912422,2.14261626,116750.0,116740.0,0.14030626]
[1754765913113,1.4765633,116750.0,116740.0,0.14030626]
[1754765913314,2.14261626,116750.0,116740.0,0.14030626]
[1754765914019,2.14261626,116750.0,116740.0,0.03235]
[1754765915015,1.4765633,116750.0,116740.0,0.03235]
[1754765915319,2.14261626,116750.0,116740.0,0.03235]
[1754765915521,2.02769826,116750.0,116740.0,0.03235]
[1754765917921,1.3616453,116750.0,116740.0,0.03235]
[1754765918123,2.02769826,116750.0,116740.0,0.03235]
[1754765918820,2.02769826,116750.0,116740.0,0.14030626]
[1754765922124,1.3616453,116750.0,116740.0,0.14030626]
[1754765922421,2.02769826,116750.0,116740.0,0.14030626]
[1754765922924,2.02769826,116750.0,116740.0,0.03235]
[1754765923225,1.3616453,116750.0,116740.0,0.03235]
[1754765923427,2.02769826,116750.0,116740.0,0.14030626]
[1754765923825,2.02769826,116750.0,116740.0,0.03235]
[1754765925120,1.69467178,116750.0,116740.0,0.03235]
[1754765925327,2.02769826,116750.0,116740.0,0.02318]
[1754765926624,1.3616453,116750.0,116740.0,0.02318]
[1754765926827,2.02769826,116750.0,116740.0,0.02318]
[1754765927329,1.3616453,116750.0,116740.0,0.02318]
[1754765927524,2.02769826,116750.0,116740.0,0.02318]
[1754765929121,1.3616453,116750.0,116740.0,0.02318]
[1754765929326,2.02769826,116750.0,116740.0,0.02318]
[1754765937833,2.02769826,116750.0,116740.0,0.13113626]
[1754765941137,1.3616453,116750.0,116740.0,0.21677906]
[1754765941339,2.02769826,116750.0,116740.0,0.21677906]
[1754765943240,1.66689826,116750.0,116740.0,0.21677906]
[1754765943430,2.02769826,116750.0,116740.0,0.21677906]
[1754765944039,1.3616453,116750.0,116740.0,0.21677906]
[1754765944235,2.02769826,116750.0,116740.0,0.21677906]
[1754765951445,2.02769826,116750.0,116740.0,0.24290906]
[1754765951645,2.02769826,116750.0,116740.0,0.29026906]
[1754765953153,2.02769826,116750.0,116740.0,0.31336906]
[1754765954656,2.14261626,116750.0,116740.0,0.31336906]
[1754765959661,1.78181626,116750.0,116740.0,0.31336906]
[1754765959866,2.14261626,116750.0,116740.0,0.31336906]
[1754765960057,2.14261626,116750.0,116740.0,0.22772626]
[1754765961962,2.14261626,116750.0,116740.0,0.31336906]
[1754765963464,2.14261626,116750.0,116740.0,0.22772626]
[1754765966473,2.14261626,116750.0,116740.0,0.18036626]
[1754765967070,1.4765633,116750.0,116740.0,0.18036626]
[1754765967273,2.14261626,116750.0,116740.0,0.18036626]
[1754765967574,2.14261626,116750.0,116740.0,0.07241]
[1754765967776,2.14261626,116750.0,116740.0,0.03288]
[1754765970374,1.78181626,116750.0,116740.0,0.03288]
[1754765970575,2.14261626,116750.0,116740.0,0.03288]
[1754765970776,2.14261626,116750.0,116740.0,0.02318]
[1754765974583,1.4765633,116750.0,116740.0,0.02318]
[1754765974880,2.14261626,116750.0,116740.0,0.02318]
[1754765977683,2.14261626,116750.0,116740.0,0.13113626]
[1754765979683,1.78181626,116750.0,116740.0,0.13113626]
[1754765979886,2.14261626,116750.0,116740.0,0.13113626]
[1754765998098,1.78181626,116750.0,116740.0,0.13113626]
[1754765998300,2.14261626,116750.0,116740.0,0.13113626]
[1754766001792,0.6015533,116750.0,116740.0,0.17999626]
[1754766001997,1.80078978,116750.0,116740.0,0.31149986]
[1754766003305,2.13381626,116750.0,116740.0,0.31149986]
[1754766004098,2.13381626,116750.0,116740.0,0.22585626]
[1754766018015,2.13381626,116750.0,116740.0,0.1179]
[1754766018716,1.77301626,116750.0,116740.0,0.1179]
[1754766018909,2.13381626,116750.0,116740.0,0.1179]
[1754766023227,0.1769728,116740.0,116730.0,0.10795626]
[1754766023527,1.20382576,116740.0,116730.0,0.13194626]
[1754766024028,1.20382576,116740.0,116730.0,0.14109626]
[1754766024525,1.20382576,116740.0,116730.0,0.14209626]
[1754766025227,1.31874376,116740.0,116730.0,0.14209626]
[1754766025923,1.31874376,116740.0,116730.0,0.14309626]
[1754766026120,1.31874376,116740.0,116730.0,0.15663626]
[1754766026323,1.31874376,116740.0,116730.0,0.18972626]
[1754766027626,1.31874376,116740.0,116730.0,0.08177]
[1754766028131,0.95794376,116740.0,116730.0,0.08177]
[1754766028329,1.31874376,116740.0,116730.0,0.08177]
[1754766030928,1.31874376,116740.0,116730.0,0.0978]
[1754766031125,1.31874376,116740.0,116730.0,0.12035]
[1754766031724,0.95794376,116740.0,116730.0,0.12035]
[1754766032124,1.31874376,116740.0,116730.0,0.12035]
[1754766032530,0.95794376,116740.0,116730.0,0.12035]
[1754766032731,1.31874376,116740.0,116730.0,0.12035]
[1754766033331,0.6526908,116740.0,116730.0,0.12035]
[1754766033631,1.31874376,116740.0,116730.0,0.12035]
[1754766037036,0.95794376,116740.0,116730.0,0.12035]
[1754766037230,1.31874376,116740.0,116730.0,0.12035]
[1754766037730,1.31874376,116740.0,116730.0,0.27454469]
[1754766037931,0.95794376,116740.0,116730.0,0.36019489]
[1754766038134,0.95794376,116740.0,116730.0,0.46818663]
[1754766038632,0.95794376,116740.0,116730.0,0.31399194]
[1754766039842,0.2918908,116740.0,116730.0,0.31399194]
[1754766040039,0.95794376,116740.0,116730.0,0.31399194]
[1754766040338,0.2918908,116740.0,116730.0,0.31399194]
[1754766040537,0.2918908,116740.0,116730.0,0.64701842]
[1754766040538,0.95794376,116740.0,116730.0,0.64701842]
[1754766040931,0.95794376,116740.0,116730.0,0.69322137]
[1754766041138,0.95794376,116740.0,116730.0,0.36019489]
[1754766041332,0.95794376,116740.0,116730.0,0.69322137]
[1754766041944,0.2918908,116740.0,116730.0,0.69322137]
[1754766042142,0.95794376,116740.0,116730.0,0.69322137]
[1754766045043,0.95794376,116740.0,116730.0,0.36019489]
[1754766045236,0.95794376,116740.0,116730.0,0.69322137]
[1754766047538,0.2918908,116740.0,116730.0,0.69322137]
[1754766047840,0.95794376,116740.0,116730.0,0.36019489]
[1754766049850,0.2918908,116740.0,116730.0,0.36019489]
[1754766050035,0.95794376,116740.0,116730.0,0.36019489]
[1754766050944,0.95794376,116740.0,116730.0,0.69322137]
[1754766051543,0.2918908,116740.0,116730.0,0.69322137]
[1754766051742,0.95794376,116740.0,116730.0,0.69322137]
[1754766056646,0.95794376,116740.0,116730.0,0.36019489]
[1754766056848,0.95794376,116740.0,116730.0,0.69322137]
[1754766057047,0.95794376,116740.0,116730.0,0.2060002]
[1754766057248,0.95794376,116740.0,116730.0,0.53902668]
[1754766057749,0.95794376,116740.0,116730.0,0.2060002]
[1754766058750,0.95794376,116740.0,116730.0,0.36019489]
[1754766060048,0.95794376,116740.0,116730.0,0.69322137]
[1754766060350,0.2918908,116740.0,116730.0,0.69322137]
[1754766060647,0.95794376,116740.0,116730.0,0.69322137]
[1754766061650,0.2750208,116740.0,116730.0,0.69322137]
[1754766061952,0.60804728,116740.0,116730.0,0.69322137]
[1754766062853,0.60804728,116740.0,116730.0,0.36019489]
[1754766063045,0.94107376,116740.0,116730.0,0.69322137]
[1754766064558,0.60804728,116740.0,116730.0,0.69322137]
[1754766065250,0.60804728,116740.0,116730.0,0.53902668]
[1754766066457,0.2750208,116740.0,116730.0,0.53902668]
[1754766066755,0.60804728,116740.0,116730.0,0.53902668]
[1754766067553,0.60804728,116740.0,116730.0,0.64702367]
[1754766067856,0.60804728,116740.0,116730.0,0.31399719]
[1754766068156,0.60804728,116740.0,116730.0,0.64702367]
[1754766068753,0.60804728,116740.0,116730.0,0.53902668]
[1754766069842,0.2750208,116740.0,116730.0,0.53902668]
[1754766070046,0.60804728,116740.0,116730.0,0.53902668]
[1754766070451,0.2750208,116740.0,116730.0,0.53902668]
[1754766070653,0.60804728,116740.0,116730.0,0.53902668]
[1754766073063,0.2750208,116740.0,116730.0,0.53902668]
[1754766073250,0.60804728,116740.0,116730.0,0.53902668]
[1754766076060,0.2750208,116740.0,116730.0,0.53902668]
[1754766076261,0.60804728,116740.0,116730.0,0.2060002]
[1754766076558,0.60804728,116740.0,116730.0,0.53902668]
[1754766078363,0.60804728,116740.0,116730.0,0.2060002]
[1754766078562,0.60804728,116740.0,116730.0,0.53902668]
[1754766082164,0.60804728,116740.0,116730.0,0.69322137]
[1754766085168,0.94107376,116740.0,116730.0,0.69322137]
[1754766085571,0.94107376,116740.0,116730.0,0.36019489]
[1754766085764,0.94107376,116740.0,116730.0,0.69322137]
[1754766086070,0.94107376,116740.0,116730.0,0.36019489]
[1754766086273,0.95794376,116740.0,116730.0,0.69322137]
[1754766086461,0.62491728,116740.0,116730.0,0.69322137]
[1754766086858,0.62491728,116740.0,116730.0,0.53902668]
[1754766087764,0.95794376,116740.0,116730.0,0.53902668]
[1754766088272,0.95794376,116740.0,116730.0,0.89982668]
[1754766091171,0.95794376,116740.0,116730.0,0.5668002]
[1754766091471,0.95794376,116740.0,116730.0,0.89982668]
[1754766091771,0.95794376,116740.0,116730.0,0.53902668]
[1754766092873,0.2918908,116740.0,116730.0,0.53902668]
[1754766093066,0.95794376,116740.0,116730.0,0.89982668]
[1754766093265,0.2918908,116740.0,116730.0,0.89982668]
[1754766093465,0.95794376,116740.0,116730.0,0.89982668]
[1754766093764,0.95794376,116740.0,116730.0,0.53902668]
[1754766093963,0.2918908,116740.0,116730.0,0.89982668]
[1754766094163,0.95794376,116740.0,116730.0,0.89982668]
[1754766098174,0.95794376,116740.0,116730.0,1.05402137]
[1754766100576,0.95794376,116740.0,116730.0,0.72099489]
[1754766100772,0.95794376,116740.0,116730.0,1.05402137]
[1754766101271,0.95794376,116740.0,116730.0,0.72099489]
[1754766101476,0.95794376,116740.0,116730.0,1.05402137]
[1754766102374,0.95794376,116740.0,116730.0,0.69322137]
[1754766102677,0.95794376,116740.0,116730.0,1.05402137]
[1754766104376,0.95794376,116740.0,116730.0,0.69322137]
[1754766104579,0.95794376,116740.0,116730.0,1.05402137]
[1754766105777,0.95794376,116740.0,116730.0,0.72099489]
[1754766106072,0.95794376,116740.0,116730.0,1.05402137]
[1754766106974,0.95794376,116740.0,116730.0,0.69322137]
[1754766107877,0.95794376,116740.0,116730.0,0.2060002]
[1754766108175,0.95794376,116740.0,116730.0,0.53902668]
[1754766110183,0.2918908,116740.0,116730.0,0.53902668]
[1754766110376,0.95794376,116740.0,116730.0,0.53902668]
[1754766111077,0.95794376,116740.0,116730.0,0.2060002]
[1754766111376,0.95794376,116740.0,116730.0,0.53902668]
[1754766112578,0.2918908,116740.0,116730.0,0.53902668]
[1754766112878,0.95794376,116740.0,116730.0,0.89982668]
[1754766113978,0.2918908,116740.0,116730.0,0.89982668]
[1754766114177,0.62491728,116740.0,116730.0,0.5668002]
[1754766114369,0.95794376,116740.0,116730.0,0.89982668]
[1754766114572,0.2918908,116740.0,116730.0,0.89982668]
[1754766115080,0.95794376,116740.0,116730.0,0.5668002]
[1754766115278,0.95794376,116740.0,116730.0,0.89982668]
[1754766115674,0.95794376,116740.0,116730.0,0.53902668]
[1754766115874,0.95794376,116740.0,116730.0,0.89982668]
[1754766116076,0.95794376,116740.0,116730.0,0.53902668]
[1754766116277,0.95794376,116740.0,116730.0,0.89982668]
[1754766117077,0.95794376,116740.0,116730.0,0.53902668]
[1754766117279,0.95794376,116740.0,116730.0,0.89982668]
[1754766118471,0.95794376,116740.0,116730.0,1.05402137]
[1754766121284,0.62491728,116740.0,116730.0,1.05402137]
[1754766122286,0.2918908,116740.0,116730.0,1.05402137]
[1754766122485,0.62491728,116740.0,116730.0,1.05402137]
[1754766124682,0.62491728,116740.0,116730.0,0.69322137]
[1754766124880,0.60804728,116740.0,116730.0,1.05402137]
[1754766125482,0.2750208,116740.0,116730.0,0.72099489]
[1754766125683,0.60804728,116740.0,116730.0,0.89982668]
[1754766128083,1.41436728,116740.0,116730.0,0.89982668]
[1754766129674,1.0813408,116740.0,116730.0,0.72099489]
[1754766129976,1.41436728,116740.0,116730.0,1.05402137]
[1754766130183,0.2720208,116740.0,116730.0,1.05402137]
[1754766130479,1.41424728,116740.0,116730.0,0.89982668]
[1754766131586,1.41424728,116740.0,116730.0,1.00781845]
[1754766131882,1.41424728,116740.0,116730.0,0.89982668]
[1754766132078,1.41424728,116740.0,116730.0,0.53902668]
[1754766132283,1.41424728,116740.0,116730.0,0.89982668]
[1754766133985,1.41424728,116740.0,116730.0,1.05410064]
[1754766134684,1.41424728,116740.0,116730.0,0.69330064]
[1754766134880,1.41424728,116740.0,116730.0,1.05410064]
[1754766135078,0.2750208,116740.0,116730.0,1.05410064]
[1754766135276,1.41404728,116740.0,116730.0,1.05410064]
[1754766136981,1.74707376,116740.0,116730.0,0.72107416]
[1754766137284,1.0978908,116740.0,116730.0,1.05410064]
[1754766137476,1.0808608,116740.0,116730.0,1.05410064]
[1754766137676,1.41388728,116740.0,116730.0,1.05410064]
[1754766137881,1.41388728,116740.0,116730.0,0.89982668]
[1754766138184,1.0808608,116740.0,116730.0,0.89982668]
[1754766138386,1.41388728,116740.0,116730.0,0.89982668]
[1754766140174,1.0808608,116740.0,116730.0,0.89982668]
[1754766140376,1.41388728,116740.0,116730.0,1.05410064]
[1754766141182,1.41376728,116740.0,116730.0,1.05410064]
[1754766141380,1.41376728,116740.0,116730.0,0.69330064]
[1754766141586,1.41376728,116740.0,116730.0,1.05410064]
[1754766142483,1.43063728,116740.0,116730.0,1.00747064]
[1754766142786,1.43063728,116740.0,116730.0,0.90045668]
[1754766145580,1.0976108,116740.0,116730.0,0.90045668]
[1754766145879,1.43063728,116740.0,116730.0,0.90045668]
[1754766147994,1.76366376,116740.0,116730.0,0.90045668]
[1754766148291,1.76366376,116740.0,116730.0,1.05473064]
[1754766149084,1.0976108,116740.0,116730.0,1.05473064]
[1754766149285,1.43063728,116740.0,116730.0,1.05473064]
[1754766149890,1.43063728,116740.0,116730.0,0.72170416]
[1754766150190,1.43063728,116740.0,116730.0,1.05473064]
[1754766150589,1.0976108,116740.0,116730.0,0.72170416]
[1754766150793,1.43063728,116740.0,116730.0,1.05473064]
[1754766151790,1.43063728,116740.0,116730.0,0.72170416]
[1754766152091,1.43063728,116740.0,116730.0,1.05473064]
[1754766152891,1.0976108,116740.0,116730.0,1.05473064]